bitfinex/quotes_BTCUSD_20241004
["timestamp","ask_amount","ask_price","bid_price","bid_amount"]
[1728053581223,0.24025793,61379.0,61375.0,0.20899344]
[1728053581437,0.24025793,61379.0,61378.0,0.162924]
[1728053581890,0.40344464,61379.0,61378.0,0.162924]
[1728053582134,0.16318671,61379.0,61378.0,0.162924]
[1728053583058,0.001,61379.0,61378.0,0.167924]
[1728053583311,0.001,61379.0,61378.0,0.181924]
[1728053583958,0.001819,61379.0,61378.0,0.181924]
[1728053586292,0.001819,61379.0,61378.0,0.281924]
[1728053586581,0.001819,61379.0,61378.0,0.385224]
[1728053587659,0.24725793,61379.0,61378.0,0.385224]
[1728053587887,0.24625793,61379.0,61378.0,0.262924]
[1728053588103,0.41496646,61379.0,61378.0,0.176924]
[1728053588343,0.16952753,61379.0,61378.0,0.176924]
[1728053588564,0.19506894,61379.0,61378.0,0.176924]
[1728053589064,0.03188223,61379.0,61378.0,0.176924]
[1728053589298,0.03288223,61379.0,61378.0,0.190924]
[1728053589536,0.02736041,61379.0,61378.0,0.190924]
[1728053589972,0.27279934,61379.0,61378.0,0.190924]
[1728053590193,0.02736041,61379.0,61378.0,0.190924]
[1728053590457,0.17523427,61379.0,61378.0,0.190924]
[1728053590669,0.16971245,61379.0,61378.0,0.190924]
[1728053590885,0.17519754,61379.0,61378.0,0.190924]
[1728053591824,0.17519754,61379.0,61378.0,0.028]
[1728053592302,0.27295788,61379.0,61378.0,0.190924]
[1728053592530,0.17519754,61379.0,61378.0,0.176924]
[1728053593029,0.17519754,61379.0,61378.0,0.027]
[1728053593290,0.17519754,61379.0,61378.0,0.013]
[1728053593291,0.66555847,61379.0,61378.0,0.013]
[1728053593505,0.65940352,61379.0,61378.0,0.019]
[1728053593759,0.51301954,61379.0,61378.0,0.019]
[1728053594021,0.51501954,61379.0,61378.0,0.019]
[1728053594209,0.51301954,61379.0,61378.0,0.019]
[1728053594418,0.51301954,61379.0,61360.0,0.327582]
[1728053594419,0.083,61373.0,61363.0,0.325926]
[1728053594643,0.09777261,61366.0,61364.0,0.162961]
[1728053594884,0.07332785,61365.0,61364.0,0.162961]
[1728053595122,0.00538239,61365.0,61364.0,0.162961]
[1728053595359,0.07935934,61365.0,61364.0,0.162961]
[1728053595609,0.17713195,61365.0,61364.0,0.162961]
[1728053596078,0.15266671,61365.0,61364.0,0.162961]
[1728053596299,0.00538239,61365.0,61364.0,0.176961]
[1728053596975,0.00538239,61365.0,61364.0,0.38995444]
[1728053597218,0.02554868,61366.0,61365.0,0.185959]
[1728053597888,0.04885648,61374.0,61365.0,0.023]
[1728053598129,0.04885648,61374.0,61373.0,0.162938]
[1728053598130,0.12602231,61374.0,61373.0,0.162938]
[1728053598356,0.12601487,61374.0,61373.0,0.162938]
[1728053598586,0.15045376,61374.0,61373.0,0.162938]
[1728053598804,0.15044023,61374.0,61373.0,0.162938]
[1728053599030,0.17488308,61374.0,61373.0,0.162938]
[1728053599259,0.17488308,61374.0,61373.0,0.169938]
[1728053599544,0.20042939,61374.0,61373.0,0.169938]
[1728053599999,0.10271214,61374.0,61373.0,0.169938]
[1728053600210,0.10271214,61374.0,61373.0,0.007]
[1728053600453,0.2248587,61374.0,61373.0,0.169938]
[1728053600919,0.10271214,61374.0,61373.0,0.169938]
[1728053601143,0.02554631,61374.0,61373.0,0.169938]
[1728053603569,0.07439289,61374.0,61373.0,0.169938]
[1728053604248,0.02554631,61374.0,61373.0,0.169938]
[1728053604484,0.07439289,61374.0,61373.0,0.169938]
[1728053605857,0.0743936,61374.0,61373.0,0.169938]
[1728053606090,0.08691984,61374.0,61373.0,0.169938]
[1728053606332,0.13576819,61374.0,61373.0,0.169938]
[1728053606563,0.02554631,61374.0,61373.0,0.169938]
[1728053608163,0.02554631,61374.0,61373.0,0.162938]
[1728053608415,0.02554631,61374.0,61373.0,0.176938]
[1728053610016,0.04884835,61378.0,61377.0,0.162927]
[1728053610457,0.001,61374.0,61373.0,0.188938]
[1728053611134,0.29510618,61379.0,61373.0,0.162938]
[1728053611350,0.29510618,61379.0,61378.0,0.162924]
[1728053611578,0.24625793,61379.0,61378.0,0.162924]
[1728053611830,0.000819,61379.0,61378.0,0.162924]
[1728053612052,0.07521102,61379.0,61378.0,0.162924]
[1728053612730,0.09963528,61379.0,61378.0,0.162924]
[1728053612947,0.23839882,61379.0,61378.0,0.176924]
[1728053613222,0.23839882,61379.0,61378.0,0.014]
[1728053613223,0.89233127,61379.0,61378.0,0.014]
[1728053613460,0.7702104,61379.0,61378.0,0.014]
[1728053613959,0.7702104,61379.0,61361.0,0.24543893]
[1728053613960,0.338759,61365.0,61361.0,0.24543893]
[1728053614438,0.338759,61365.0,61360.0,0.001638]
[1728053614669,0.36431055,61365.0,61360.0,0.001638]
[1728053615143,0.20135155,61365.0,61360.0,0.327579]
[1728053615382,0.36431055,61365.0,61364.0,0.006638]
[1728053615625,0.40723375,61365.0,61364.0,0.006638]
[1728053615889,0.07438056,61365.0,61364.0,0.169599]
[1728053616112,0.02555155,61365.0,61364.0,0.164599]
[1728053616331,0.07438101,61365.0,61364.0,0.164599]
[1728053616555,0.07637538,61365.0,61364.0,0.164599]
[1728053616814,0.26628617,61365.0,61364.0,0.001638]
[1728053617065,0.26628617,61365.0,61364.0,0.006638]
[1728053617066,0.36393949,61365.0,61364.0,0.006638]
[1728053617328,0.26628617,61365.0,61364.0,0.006638]
[1728053617575,0.26628617,61365.0,61364.0,0.005638]
[1728053617818,0.26628617,61365.0,61364.0,0.013638]
[1728053617819,0.26728617,61365.0,61364.0,0.013638]
[1728053618084,0.36392464,61365.0,61364.0,0.001638]
[1728053618414,0.36392464,61365.0,61364.0,0.010638]
[1728053618415,0.36348617,61365.0,61364.0,0.010638]
[1728053618867,0.46010513,61365.0,61364.0,0.003638]
[1728053619324,0.46210513,61365.0,61364.0,0.003638]
[1728053619563,0.46210513,61365.0,61364.0,0.001638]
[1728053620049,0.37248617,61365.0,61364.0,0.002638]
[1728053620284,0.46209038,61365.0,61364.0,0.001638]
[1728053620524,0.36448617,61365.0,61364.0,0.003638]
[1728053620771,0.46209038,61365.0,61364.0,0.003638]
[1728053621015,0.46009038,61365.0,61364.0,0.003638]
[1728053621267,0.29813138,61365.0,61364.0,0.004638]
[1728053621516,0.17751368,61365.0,61364.0,0.004638]
[1728053621700,0.33947268,61365.0,61364.0,0.002638]
[1728053621930,0.34047268,61365.0,61364.0,0.005638]
[1728053622450,0.26728617,61365.0,61364.0,0.005638]
[1728053622937,0.07533632,61365.0,61364.0,0.167599]
[1728053623189,0.02655155,61365.0,61364.0,0.167599]
[1728053623681,0.001,61365.0,61364.0,0.167599]
[1728053625613,0.001,61365.0,61364.0,0.004638]
[1728053625854,0.23714551,61365.0,61364.0,0.004638]
[1728053626104,0.37131023,61365.0,61364.0,0.004638]
[1728053626340,0.18394501,61365.0,61364.0,0.004638]
[1728053626573,0.18394454,61365.0,61364.0,0.004638]
[1728053626830,0.18394454,61365.0,61364.0,0.167599]
[1728053627081,0.001,61365.0,61364.0,0.167599]
[1728053628074,0.001,61365.0,61364.0,0.004638]
[1728053628318,0.244459,61365.0,61364.0,0.004638]
[1728053629014,0.31762874,61365.0,61364.0,0.004638]
[1728053629232,0.29323611,61365.0,61364.0,0.004638]
[1728053629488,0.50164571,61365.0,61364.0,0.004638]
[1728053630211,0.50064571,61365.0,61364.0,0.001638]
[1728053630450,0.50564571,61365.0,61364.0,0.002638]
[1728053630901,0.50964571,61365.0,61364.0,0.002638]
[1728053631120,0.65596028,61365.0,61364.0,0.002638]
[1728053631308,0.66296028,61365.0,61364.0,0.002638]
[1728053631748,0.64696028,61365.0,61364.0,0.001638]
[1728053631976,0.64496028,61365.0,61364.0,0.002638]
[1728053632815,0.49864571,61365.0,61364.0,0.002638]
[1728053633050,0.74908464,61365.0,61364.0,0.002638]
[1728053633194,0.49864571,61365.0,61364.0,0.002638]
[1728053633557,0.50664571,61365.0,61364.0,0.002638]
[1728053633773,0.50964571,61365.0,61364.0,0.002638]
[1728053633978,0.50364571,61365.0,61364.0,0.001638]
[1728053634172,0.51064571,61365.0,61364.0,0.002638]
[1728053634591,0.51464571,61365.0,61364.0,0.002638]
[1728053637358,0.51264571,61365.0,61364.0,0.002638]
[1728053637636,0.51464571,61365.0,61364.0,0.002638]
[1728053637839,0.61464571,61365.0,61364.0,0.002638]
[1728053639422,0.61464571,61365.0,61284.0,0.49992347]
[1728053639423,0.16302,61342.0,61334.0,0.24543893]
[1728053639673,0.23618198,61342.0,61334.0,0.24543893]
[1728053639919,0.23618198,61342.0,61330.0,0.326101]
[1728053639920,0.16302,61342.0,61330.0,0.326101]
[1728053640133,0.28613677,61342.0,61332.0,0.326089]
[1728053640368,0.28613677,61342.0,61334.0,0.32608]
[1728053640369,0.18858168,61342.0,61334.0,0.32608]
[1728053640594,0.18858168,61342.0,61341.0,0.24031556]
[1728053640595,0.07433359,61342.0,61341.0,0.24031556]
[1728053640818,0.07433359,61342.0,61341.0,0.24831556]
[1728053640819,0.02656168,61342.0,61341.0,0.24831556]
[1728053641268,0.02556168,61342.0,61341.0,0.24031556]
[1728053641516,0.03156168,61342.0,61341.0,0.24031556]
[1728053641738,0.006,61342.0,61341.0,0.24031556]
[1728053643844,0.03155829,61342.0,61341.0,0.00159256]
[1728053644104,0.21673346,61342.0,61341.0,0.00159256]
[1728053644547,0.34537458,61342.0,61341.0,0.00159256]
[1728053645000,0.33937458,61342.0,61341.0,0.00159256]
[1728053645452,0.29163346,61342.0,61341.0,0.00159256]
[1728053645675,0.29063346,61342.0,61341.0,0.00159256]
[1728053646162,0.29163346,61342.0,61341.0,0.01159256]
[1728053646615,0.29363346,61342.0,61341.0,0.01159256]
[1728053647569,0.29263346,61342.0,61341.0,0.00159256]
[1728053648025,0.21073346,61342.0,61341.0,0.00159256]
[1728053648497,0.21673346,61342.0,61341.0,0.00159256]
[1728053648723,0.04771346,61342.0,61341.0,0.00159256]
[1728053648990,0.04771346,61342.0,61341.0,0.00359256]
[1728053648991,0.04971346,61342.0,61341.0,0.00359256]
[1728053649204,0.02755829,61342.0,61341.0,0.00359256]
[1728053649450,0.02755829,61342.0,61341.0,0.16661556]
[1728053649664,0.02755829,61342.0,61341.0,0.16461556]
[1728053649882,0.02555829,61342.0,61341.0,0.16461556]
[1728053650138,0.02655829,61342.0,61341.0,0.17361556]
[1728053650746,0.02655829,61342.0,61341.0,0.34941556]
[1728053650859,0.24543893,61358.0,61342.0,0.32604]
[1728053651095,0.001,61342.0,61341.0,0.35041556]
[1728053651331,0.002,61342.0,61341.0,0.540409]
[1728053651577,0.002,61342.0,61341.0,0.35041556]
[1728053652302,0.001,61342.0,61341.0,0.35041556]
[1728053652544,0.002,61342.0,61341.0,0.35041556]
[1728053652808,0.001,61342.0,61341.0,0.35041556]
[1728053653028,0.002,61342.0,61341.0,0.35041556]
[1728053653477,0.001,61342.0,61341.0,0.34041556]
[1728053653716,0.001,61342.0,61341.0,0.24241556]
[1728053653942,0.002,61342.0,61341.0,0.25241556]
[1728053654173,0.02755682,61342.0,61341.0,0.25241556]
[1728053654449,0.02655682,61342.0,61341.0,0.24241556]
[1728053654689,0.02755682,61342.0,61341.0,0.25241556]
[1728053656120,0.02755682,61342.0,61341.0,0.17461556]
[1728053658166,0.002,61342.0,61341.0,0.17461556]
[1728053658408,0.002,61342.0,61341.0,0.25281556]
[1728053659091,0.002,61342.0,61341.0,0.17461556]
[1728053667234,0.001,61342.0,61341.0,0.16461556]
[1728053667485,0.02555743,61345.0,61344.0,0.163015]
[1728053668777,0.02655743,61345.0,61344.0,0.163015]
[1728053670444,0.02655743,61345.0,61344.0,0.177015]
[1728053671681,0.05118393,61345.0,61344.0,0.177015]
[1728053671907,0.05118393,61345.0,61344.0,0.014]
[1728053671908,0.10000784,61345.0,61344.0,0.014]
[1728053672135,0.09900784,61345.0,61344.0,0.177015]
[1728053672347,0.09900784,61345.0,61344.0,0.022]
[1728053672348,0.1244198,61345.0,61344.0,0.022]
[1728053672582,0.05118393,61345.0,61344.0,0.022]
[1728053672815,0.12449357,61345.0,61344.0,0.022]
[1728053673022,0.5806372,61345.0,61344.0,0.022]
[1728053673288,0.57638937,61345.0,61344.0,0.008]
[1728053673480,0.57638937,61345.0,61344.0,0.021]
[1728053673909,0.57638937,61345.0,61341.0,0.00159256]
[1728053673910,0.41237737,61345.0,61341.0,0.00159256]
[1728053674114,0.16302,61342.0,61341.0,0.00159256]
[1728053674517,0.30967381,61342.0,61341.0,0.00159256]
[1728053674767,0.16302,61342.0,61341.0,0.00159256]
[1728053675196,0.16502,61342.0,61341.0,0.00159256]
[1728053675634,0.26502,61342.0,61341.0,0.00159256]
[1728053675896,0.42820671,61342.0,61341.0,0.00159256]
[1728053676166,0.265041,61334.0,61317.0,0.001638]
[1728053676427,0.265041,61334.0,61321.0,0.24543893]
[1728053676428,0.62693444,61334.0,61321.0,0.24543893]
[1728053676666,0.88893444,61334.0,61321.0,0.24543893]
[1728053676904,0.91450303,61334.0,61317.0,0.001638]
[1728053677127,1.07116743,61334.0,61317.0,0.001638]
[1728053677402,1.07116743,61334.0,61333.0,0.38659526]
[1728053677403,1.09916743,61334.0,61333.0,0.38659526]
[1728053677615,1.09916743,61334.0,61317.0,0.001638]
[1728053677616,0.165084,61318.0,61317.0,0.001638]
[1728053677846,0.66710092,61318.0,61317.0,0.001638]
[1728053678305,0.69067544,61318.0,61317.0,0.001638]
[1728053678543,0.59500716,61318.0,61317.0,0.001638]
[1728053679046,0.61800716,61318.0,61317.0,0.001638]
[1728053679286,0.59500716,61318.0,61317.0,0.001638]
[1728053679492,0.96094944,61318.0,61317.0,0.001638]
[1728053679702,0.71551051,61318.0,61317.0,0.001638]
[1728053679939,0.71551333,61318.0,61317.0,0.001638]
[1728053680176,0.69051333,61318.0,61317.0,0.001638]
[1728053680417,0.60400716,61318.0,61317.0,0.001638]
[1728053680626,0.61900716,61318.0,61317.0,0.002638]
[1728053680849,0.41601372,61318.0,61317.0,0.002638]
[1728053681079,0.60700716,61318.0,61317.0,0.001638]
[1728053681357,0.60700716,61318.0,61317.0,0.002638]
[1728053681358,0.60800716,61318.0,61317.0,0.002638]
[1728053681557,0.60600716,61318.0,61317.0,0.002638]
[1728053681768,0.61000716,61318.0,61317.0,0.002638]
[1728053682006,0.60600716,61318.0,61317.0,0.002638]
[1728053682238,0.41601372,61318.0,61317.0,0.002638]
[1728053682980,0.40301372,61318.0,61317.0,0.001638]
[1728053683196,0.13992972,61318.0,61317.0,0.001638]
[1728053683450,0.03657452,61318.0,61317.0,0.164724]
[1728053683656,0.007,61318.0,61317.0,0.491895]
[1728053683906,0.007,61318.0,61317.0,0.568895]
[1728053683907,0.011,61318.0,61317.0,0.568895]
[1728053684125,0.004,61318.0,61317.0,0.078638]
[1728053684364,0.004,61318.0,61317.0,0.241724]
[1728053684365,0.020708,61318.0,61317.0,0.241724]
[1728053684589,0.163074,61322.0,61317.0,0.241724]
[1728053684829,0.163061,61327.0,61320.0,0.163077]
[1728053685070,0.57154893,61329.0,61323.0,0.16307]
[1728053685367,0.05715489,61328.0,61325.0,0.163063]
[1728053685581,0.02556952,61326.0,61325.0,0.163063]
[1728053685996,0.02556952,61326.0,61319.0,0.652318]
[1728053686215,0.02556952,61326.0,61325.0,0.163065]
[1728053686448,0.02556952,61326.0,61324.0,0.163067]
[1728053686664,0.08173333,61325.0,61319.0,0.326162]
[1728053686871,0.08173333,61325.0,61317.0,0.413809]
[1728053687079,0.08173333,61325.0,61318.0,0.326168]
[1728053687290,0.163072,61323.0,61319.0,0.001]
[1728053687527,0.08173333,61325.0,61320.0,0.163078]
[1728053687528,0.163069,61324.0,61320.0,0.163078]
[1728053687764,0.07400177,61324.0,61323.0,0.163068]
[1728053688425,0.02856952,61326.0,61325.0,0.163065]
[1728053689384,0.02856952,61326.0,61323.0,0.163069]
[1728053689628,0.02856952,61326.0,61318.0,0.163083]
[1728053689856,0.02856952,61326.0,61317.0,0.003638]
[1728053689857,0.163072,61323.0,61319.0,0.16308]
[1728053690082,0.05177765,61322.0,61321.0,0.163076]
[1728053690295,0.163072,61323.0,61320.0,0.003]
[1728053690528,0.163068,61325.0,61321.0,0.163074]
[1728053690748,0.001,61324.0,61320.0,0.003]
[1728053690970,0.02556952,61326.0,61321.0,0.18999344]
[1728053691198,0.02556952,61326.0,61325.0,0.338465]
[1728053691437,0.02556952,61326.0,61325.0,0.52845844]
[1728053692470,0.02556952,61326.0,61325.0,0.53009644]
[1728053693419,0.02656952,61326.0,61325.0,0.53009644]
[1728053693635,0.02656952,61326.0,61325.0,0.54409644]
[1728053694086,0.02756952,61326.0,61325.0,0.54409644]
[1728053698674,0.24543893,61337.0,61325.0,0.54409644]
[1728053698675,0.24543893,61337.0,61325.0,0.42323144]
[1728053698905,0.26998282,61337.0,61336.0,0.53092944]
[1728053699148,0.24543893,61337.0,61336.0,0.53092944]
[1728053699390,0.24543893,61344.0,61343.0,0.163017]
[1728053700113,0.02556019,61344.0,61343.0,0.163017]
[1728053700819,0.02556131,61345.0,61344.0,0.163015]
[1728053701078,0.000819,61359.0,61343.0,0.418934]
[1728053701079,0.000819,61359.0,61357.0,0.16298]
[1728053701297,0.000819,61359.0,61345.0,0.099]
[1728053701298,0.27099648,61351.0,61350.0,0.162999]
[1728053701547,0.163794,61359.0,61351.0,0.325993]
[1728053701852,0.163794,61359.0,61352.0,0.162992]
[1728053701853,0.162984,61356.0,61352.0,0.162992]
[1728053702080,0.27165695,61355.0,61351.0,0.162995]
[1728053702329,0.162989,61354.0,61351.0,0.162995]
[1728053702549,0.10866995,61355.0,61352.0,0.162992]
[1728053702770,0.10866995,61355.0,61351.0,0.32599]
[1728053703243,0.27165695,61355.0,61351.0,0.162995]
[1728053703483,0.08694161,61354.0,61352.0,0.162993]
[1728053703711,0.08694161,61354.0,61353.0,0.162991]
[1728053703960,0.001,61355.0,61354.0,0.162988]
[1728053704175,0.02555725,61357.0,61356.0,0.162983]
[1728053704456,0.02555725,61357.0,61356.0,0.258283]
[1728053704676,0.02555725,61357.0,61356.0,0.44827644]
[1728053705576,0.02555725,61357.0,61356.0,0.52757644]
[1728053706981,0.02655725,61357.0,61356.0,0.54257644]
[1728053707205,0.02655725,61357.0,61356.0,0.52857644]
[1728053707441,0.02755725,61357.0,61356.0,0.52957644]
[1728053707664,0.02755725,61357.0,61356.0,0.54357644]
[1728053711198,0.19053725,61357.0,61356.0,0.016]
[1728053711439,0.24482303,61357.0,61356.0,0.016]
[1728053712660,0.24482303,61357.0,61356.0,0.002]
[1728053713141,0.24482303,61357.0,61356.0,0.01]
[1728053713383,0.24482303,61357.0,61356.0,0.009]
[1728053713663,0.24482303,61357.0,61336.0,0.18999344]
[1728053713664,0.1,61356.0,61340.0,0.24543893]
[1728053713911,0.1,61356.0,61332.0,0.18999344]
[1728053713912,0.61596444,61356.0,61332.0,0.18999344]
[1728053714161,0.61596444,61356.0,61328.0,0.0758]
[1728053714162,0.18999344,61344.0,61325.0,0.092738]
[1728053714409,0.24743893,61352.0,61325.0,0.001638]
[1728053714410,0.326094,61332.0,61325.0,0.001638]
[1728053714638,0.426038,61343.0,61325.0,0.001638]
[1728053714639,0.18999344,61338.0,61325.0,0.001638]
[1728053714883,0.426038,61343.0,61325.0,0.001638]
[1728053714884,0.326083,61334.0,61325.0,0.001638]
[1728053715128,0.05715219,61333.0,61325.0,0.001638]
[1728053715617,0.38324119,61333.0,61325.0,0.001638]
[1728053715869,0.163056,61329.0,61325.0,0.164702]
[1728053716113,0.163057,61328.0,61325.0,0.001638]
[1728053716356,0.08408302,61327.0,61325.0,0.001638]
[1728053716864,0.163062,61326.0,61325.0,0.002638]
[1728053717141,0.163062,61326.0,61325.0,0.004638]
[1728053717639,0.163062,61326.0,61325.0,0.002638]
[1728053717878,0.163062,61326.0,61325.0,0.005638]
[1728053718124,0.27164817,61326.0,61325.0,0.005638]
[1728053718602,0.26964817,61326.0,61325.0,0.005638]
[1728053718842,0.27964817,61326.0,61325.0,0.005638]
[1728053719089,0.27964817,61326.0,61325.0,0.001638]
[1728053719578,0.28064817,61326.0,61325.0,0.001638]
[1728053720074,0.28264817,61326.0,61325.0,0.001638]
[1728053720573,0.28164817,61326.0,61325.0,0.001638]
[1728053720835,0.27264817,61326.0,61325.0,0.001638]
[1728053721084,0.37864817,61326.0,61325.0,0.001638]
[1728053721329,0.37264817,61326.0,61325.0,0.001638]
[1728053721565,0.38064817,61326.0,61325.0,0.001638]
[1728053721807,0.37064817,61326.0,61325.0,0.001638]
[1728053722040,0.36964817,61326.0,61325.0,0.001638]
[1728053722277,0.38364817,61326.0,61325.0,0.001638]
[1728053722537,0.37464817,61326.0,61325.0,0.002638]
[1728053723011,0.36964817,61326.0,61325.0,0.001638]
[1728053723273,0.26964817,61326.0,61325.0,0.001638]
[1728053723501,0.168062,61326.0,61325.0,0.002638]
[1728053724497,0.178062,61326.0,61325.0,0.002638]
[1728053724743,0.168062,61326.0,61325.0,0.002638]
[1728053724986,0.177062,61326.0,61325.0,0.002638]
[1728053725225,0.26510504,61326.0,61325.0,0.001638]
[1728053725477,0.26510504,61326.0,61325.0,0.002638]
[1728053725478,0.26110504,61326.0,61325.0,0.002638]
[1728053725963,0.25610504,61326.0,61325.0,0.001638]
[1728053726688,0.25610504,61326.0,61325.0,0.005638]
[1728053726933,0.09304304,61326.0,61325.0,0.005638]
[1728053727175,0.09304304,61326.0,61325.0,0.168703]
[1728053727463,0.09304304,61326.0,61325.0,0.005638]
[1728053727701,0.25610504,61326.0,61325.0,0.005638]
[1728053728196,0.25610504,61326.0,61325.0,0.001638]
[1728053728434,0.26110504,61326.0,61325.0,0.002638]
[1728053728950,0.25610504,61326.0,61325.0,0.001638]
[1728053729439,0.44609848,61326.0,61325.0,0.001638]
[1728053729691,0.44609848,61326.0,61325.0,0.006638]
[1728053729692,0.45409848,61326.0,61325.0,0.006638]
[1728053730210,0.55409848,61326.0,61325.0,0.006638]
[1728053730436,0.55609848,61326.0,61325.0,0.006638]
[1728053730659,0.55509848,61326.0,61325.0,0.006638]
[1728053730887,0.55609848,61326.0,61325.0,0.006638]
[1728053731127,0.57909848,61326.0,61325.0,0.006638]
[1728053731375,0.57109848,61326.0,61325.0,0.001638]
[1728053731607,0.62667755,61326.0,61325.0,0.002638]
[1728053731856,0.62667755,61326.0,61321.0,0.001638]
[1728053731857,0.165073,61322.0,61321.0,0.001638]
[1728053732078,5.52806644,61322.0,61321.0,0.001638]
[1728053732338,5.61032493,61322.0,61321.0,0.001638]
[1728053732583,5.56300403,61322.0,61321.0,0.001638]
[1728053733076,5.56800403,61322.0,61321.0,0.002638]
[1728053733311,5.62923665,61322.0,61321.0,0.002638]
[1728053733544,5.67780484,61322.0,61321.0,0.002638]
[1728053734262,0.47807744,61318.0,61317.0,0.001638]
[1728053734492,5.52807744,61318.0,61317.0,0.001638]
[1728053734723,5.63047077,61318.0,61317.0,0.001638]
[1728053735703,5.64447077,61318.0,61317.0,0.001638]
[1728053735940,5.66153619,61318.0,61317.0,0.001638]
[1728053736684,5.67253619,61318.0,61317.0,0.001638]
[1728053738101,5.66153619,61318.0,61317.0,0.001638]
[1728053739309,5.67553619,61318.0,61317.0,0.001638]
[1728053740378,0.107,61317.0,61314.0,0.001638]
[1728053740619,0.007,61315.0,61314.0,0.001638]
[1728053740865,0.293092,61315.0,61314.0,0.001638]
[1728053741108,5.343092,61315.0,61314.0,0.001638]
[1728053741350,5.4391805,61315.0,61314.0,0.001638]
[1728053741824,5.4531805,61315.0,61314.0,0.001638]
[1728053742595,5.68726302,61315.0,61314.0,0.001638]
[1728053742844,5.67326302,61315.0,61314.0,0.001638]
[1728053743086,5.62417394,61315.0,61314.0,0.001638]
[1728053743304,5.67712682,61315.0,61314.0,0.001638]
[1728053744473,5.69112682,61315.0,61314.0,0.001638]
[1728053744691,5.67712682,61315.0,61314.0,0.001638]
[1728053744940,5.68112682,61315.0,61314.0,0.001638]
[1728053745200,5.69512682,61315.0,61314.0,0.001638]
[1728053747269,0.2701,61312.0,61302.0,0.001638]
[1728053747515,5.3431,61312.0,61302.0,0.001638]
[1728053747741,5.39131242,61312.0,61302.0,0.001638]
[1728053747959,5.89131242,61312.0,61302.0,0.001638]
[1728053748435,5.90131242,61312.0,61302.0,0.001638]
[1728053748656,6.06449913,61312.0,61302.0,0.001638]
[1728053749131,6.07849913,61312.0,61302.0,0.001638]
[1728053749356,6.06849913,61312.0,61302.0,0.001638]
[1728053750330,0.002,61308.0,61302.0,0.001638]
[1728053750557,5.58933606,61308.0,61302.0,0.001638]
[1728053750782,5.63754217,61308.0,61302.0,0.001638]
[1728053751010,5.6631251,61308.0,61302.0,0.001638]
[1728053751448,5.68519052,61308.0,61302.0,0.001638]
[1728053751691,5.69919052,61308.0,61302.0,0.001638]
[1728053751988,0.165124,61303.0,61302.0,0.001638]
[1728053752240,5.52811744,61303.0,61302.0,0.001638]
[1728053752701,5.57632355,61303.0,61302.0,0.001638]
[1728053753665,5.62395319,61303.0,61302.0,0.001638]
[1728053754101,5.63695319,61303.0,61302.0,0.001638]
[1728053754336,6.3091399,61303.0,61302.0,0.001638]
[1728053754575,6.3091399,61303.0,61290.0,0.0009849]
[1728053754576,0.165156,61291.0,61290.0,0.0009849]
[1728053754820,5.52814944,61291.0,61290.0,0.0009849]
[1728053755037,5.52814944,61291.0,61282.0,0.001638]
[1728053755038,0.265161,61289.0,61282.0,0.001638]
[1728053755253,5.313161,61289.0,61282.0,0.001638]
[1728053755479,5.39974352,61289.0,61282.0,0.001638]
[1728053755702,5.41092407,61289.0,61282.0,0.001638]
[1728053756952,5.40830105,61289.0,61282.0,0.001638]
[1728053757167,5.50134409,61289.0,61282.0,0.001638]
[1728053757844,5.52434409,61289.0,61282.0,0.001638]
[1728053758303,5.51534409,61289.0,61282.0,0.001638]
[1728053758760,5.52934409,61289.0,61282.0,0.001638]
[1728053759197,0.47934409,61289.0,61282.0,0.001638]
[1728053759494,5.44276157,61289.0,61282.0,0.001638]
[1728053759749,5.52934409,61289.0,61282.0,0.001638]
[1728053759974,0.47734409,61289.0,61282.0,0.001638]
[1728053760196,0.39076157,61289.0,61282.0,0.001638]
[1728053761125,0.19771853,61289.0,61288.0,0.078338]
[1728053761382,0.19771853,61289.0,61288.0,0.175538]
[1728053761879,0.03455753,61289.0,61288.0,0.175538]
[1728053762117,0.18371853,61289.0,61288.0,0.175538]
[1728053762343,0.04714359,61289.0,61288.0,0.175538]
[1728053762593,0.15336317,61289.0,61288.0,0.338702]
[1728053762849,0.42558917,61291.0,61290.0,0.163158]
[1728053763105,0.24543893,61314.0,61288.0,0.327964]
[1728053763106,0.326211,61310.0,61303.0,0.163121]
[1728053763435,0.24543893,61314.0,61288.0,0.327964]
[1728053763436,0.24543893,61314.0,61306.0,0.163116]
[1728053763688,0.163104,61311.0,61306.0,0.163116]
[1728053763942,0.163103,61311.0,61306.0,0.162116]
[1728053764204,0.163103,61311.0,61305.0,0.326237]
[1728053764205,0.24543893,61314.0,61308.0,0.16311]
[1728053764455,0.34324242,61317.0,61304.0,0.079]
[1728053764456,0.01706542,61317.0,61309.0,0.18999344]
[1728053764713,0.01706542,61317.0,61311.0,0.325204]
[1728053764714,0.24543893,61314.0,61311.0,0.325204]
[1728053764963,0.24543893,61314.0,61310.0,0.0802]
[1728053764964,0.02625044,61317.0,61316.0,0.163089]
[1728053765466,0.02625044,61317.0,61316.0,0.157089]
[1728053765943,0.02625044,61317.0,61312.0,0.326199]
[1728053766448,0.326189,61315.0,61310.0,0.0802]
[1728053766705,0.03524394,61314.0,61313.0,0.163096]
[1728053766987,0.163092,61315.0,61311.0,0.163102]
[1728053767238,0.326179,61316.0,61312.0,0.163099]
[1728053767239,0.16309,61316.0,61312.0,0.163099]
[1728053767500,0.163091,61316.0,61314.0,0.000819]
[1728053767728,0.163089,61316.0,61314.0,0.000819]
[1728053767971,0.163092,61315.0,61314.0,0.000819]
[1728053768219,0.59852437,61315.0,61314.0,0.000819]
[1728053768442,0.18866488,61315.0,61314.0,0.000819]
[1728053768706,0.37865832,61315.0,61314.0,0.004819]
[1728053768965,0.72409725,61315.0,61314.0,0.004819]
[1728053769229,0.45185159,61315.0,61314.0,0.010819]
[1728053769487,0.42627871,61315.0,61314.0,0.010819]
[1728053770003,0.263092,61315.0,61314.0,0.006819]
[1728053770240,0.163092,61315.0,61314.0,0.006819]
[1728053770460,0.26972796,61315.0,61314.0,0.007819]
[1728053770693,0.39443923,61315.0,61314.0,0.001819]
[1728053770927,0.39443923,61315.0,61314.0,0.000819]
[1728053771172,0.39543923,61315.0,61314.0,0.004819]